Workbook

Sheet Лист для печати
C1: Включить содержимое. Кнопку нажимать только после того, как "Лист для ввода" полностью заполнен. В конце данного листа вставить данные для подписи.
K2: Ежеквартально, до 20 числа месяца, следующего за отчетным кварталом
K3: на эл. адрес: monitor@krasnodar.ru
A4: ='Лист для ввода'!A4:L4 -> ОТЧЕТ
A5: ='Лист для ввода'!A5:M5 -> об объемах финансирования местных бюджетов в рамках реализации государственной программы Краснодарского края
A6: ='Лист для ввода'!A6:M6 -> "Развитие сельского хозяйства и регулирование рынков сельскохозяйственной продукции, сырья и продовольствия"
A7: ='Лист для ввода'!A7:M7 -> (наименование государственной программы)
A8: ='Лист для ввода'!A8:M8 -> "Обеспечение эпизоотического, ветеринарно-санитарного благополучия в Краснодарском крае и развитие государственной ветеринарной службы Краснодарского края"
A9: ='Лист для ввода'!A9:M9 -> (наименование подпрограммы государственной программы)
A10: ='Лист для ввода'!A10:M10 -> Субвенции на осуществление государственных полномочий по предупреждению и ликвидации болезней животных, их лечению, отлову и содержанию безнадзорных животных, защите населения от болезнй, общих для человека и животных в части регулирования численности безнадзорных животных на территории муниципальных образований Краснодарского края
A11: ='Лист для ввода'!A11:M11 -> (наименование субсидии (субвенции, иных межбюджетных трансфертов)
A12: ='Лист для ввода'!A12:M12 -> за 1 квартал 2018 год
A13: ='Лист для ввода'!A13:M13 -> (за I квартал, первое полугодие, 9 месяцев, год)
M14: тыс.рублей
A15: Наименование муници-пального образования (получателя субсидии, субвенции, иных межбюджетных трансфертов) | B15: Объем финансирования на текущий год, предусмотренный бюджетом | E15: Профинансировано в отчетном периоде | H15: Освоено в отчетном периоде | K15: Дата заключения соглашения с муниципальным образованием (дд.мм.гггг) | L15: Причины неполного (отсутствия) финансирования | M15: Причины неосвоения
B16: федеральный бюджет | C16: краевой бюджет | D16: местный бюджет | E16: федеральный бюджет | F16: краевой бюджет | G16: местный бюджет | H16: федеральный бюджет | I16: краевой бюджет | J16: местный бюджет
A17: 1 | B17: 2 | C17: 3 | D17: 4 | E17: 5 | F17: 6 | G17: 7 | H17: 8 | I17: 9 | J17: 10 | K17: 11 | L17: 12 | M17: 13
A18: Всего: | B18: 0 | C18: 13217.3 | D18: 0 | E18: 0 | F18: 0 | G18: 0 | H18: 0 | I18: 0 | J18: 0
A19: город-курорт Анапа | C19: 836 | K19: 22.03.2018
A20: город Армавир | C20: 243.8
A21: город-курорт Геленджик | C21: 192.2
A22: город Горячий Ключ | C22: 381.8
A23: город Краснодар | C23: 2949.6
A24: город Новороссийск | C24: 172.4
A25: город-курорт Сочи | C25: 3241 | K25: 22.03.2018
A26: Абинский район, всего район и поселения | B26: 0 | C26: 7 | D26: 0 | E26: 0 | F26: 0 | G26: 0 | H26: 0 | I26: 0 | J26: 0 | K26: 30.03.2018
A27: Абинский район | C27: 7
A28: Апшеронский район, всего район и поселения | B28: 0 | C28: 49.6 | D28: 0 | E28: 0 | F28: 0 | G28: 0 | H28: 0 | I28: 0 | J28: 0 | K28: 22.03.2018
A29: Апшеронский район | C29: 49.6
A30: Белоглинский район, всего район и поселения | B30: 0 | C30: 17.4 | D30: 0 | E30: 0 | F30: 0 | G30: 0 | H30: 0 | I30: 0 | J30: 0 | K30: 22.03.2018
A31: Белоглинский район | C31: 17.4
A32: Белореченский район, всего район и поселения | B32: 0 | C32: 130.5 | D32: 0 | E32: 0 | F32: 0 | G32: 0 | H32: 0 | I32: 0 | J32: 0 | K32: 22.03.2018
A33: Белореченский район | C33: 130.5
A34: Брюховецкий район, всего район и поселения | B34: 0 | C34: 6.7 | D34: 0 | E34: 0 | F34: 0 | G34: 0 | H34: 0 | I34: 0 | J34: 0 | K34: 22.03.2018
A35: Брюховецкий район | C35: 6.7
A36: Выселковский район, всего район и поселения | B36: 0 | C36: 16.1 | D36: 0 | E36: 0 | F36: 0 | G36: 0 | H36: 0 | I36: 0 | J36: 0 | K36: 22.03.2018
A37: Выселковский район | C37: 16.1
A38: Бейсугское с/п | C38: ,
A39: Гулькевичский район, всего район и поселения | B39: 0 | C39: 168.3 | D39: 0 | E39: 0 | F39: 0 | G39: 0 | H39: 0 | I39: 0 | J39: 0 | K39: 23.03.2018
A40: Гулькевичский район | C40: 168.3
A41: Динской район, всего район и поселения | B41: 0 | C41: 337.6 | D41: 0 | E41: 0 | F41: 0 | G41: 0 | H41: 0 | I41: 0 | J41: 0
A42: Динской район | C42: 337.6
A43: Ейский район, всего район и поселения | B43: 0 | C43: 295.5 | D43: 0 | E43: 0 | F43: 0 | G43: 0 | H43: 0 | I43: 0 | J43: 0 | K43: 30.03.2018
A44: Ейский район | C44: 295.5
A45: Кавказский район, всего район и поселения | B45: 0 | C45: 264.8 | D45: 0 | E45: 0 | F45: 0 | G45: 0 | H45: 0 | I45: 0 | J45: 0
A46: Кавказский район | C46: 264.8
A47: Калининский район, всего район и поселения | B47: 0 | C47: 7.1 | D47: 0 | E47: 0 | F47: 0 | G47: 0 | H47: 0 | I47: 0 | J47: 0
A48: Калининский район | C48: 7.1
A49: Каневской район, всего район и поселения | B49: 0 | C49: 42.4 | D49: 0 | E49: 0 | F49: 0 | G49: 0 | H49: 0 | I49: 0 | J49: 0 | K49: 22.03.2018
A50: Каневской район | C50: 42.4
A51: Кореновский район, всего район и поселения | B51: 0 | C51: 337.6 | D51: 0 | E51: 0 | F51: 0 | G51: 0 | H51: 0 | I51: 0 | J51: 0
A52: Кореновский район | C52: 337.6
A53: Красноармейский район, всего район и поселения | B53: 0 | C53: 105.7 | D53: 0 | E53: 0 | F53: 0 | G53: 0 | H53: 0 | I53: 0 | J53: 0 | K53: 30.03.2018
A54: Красноармейский район | C54: 105.7
A55: Крыловский район, всего район и поселения | B55: 0 | C55: 64.5 | D55: 0 | E55: 0 | F55: 0 | G55: 0 | H55: 0 | I55: 0 | J55: 0
A56: Крыловский район | C56: 64.5
A57: Крымский район, всего район и поселения | B57: 0 | C57: 75 | D57: 0 | E57: 0 | F57: 0 | G57: 0 | H57: 0 | I57: 0 | J57: 0
A58: Крымский район | C58: 75
A59: Курганинский район, всего район и поселения | B59: 0 | C59: 49 | D59: 0 | E59: 0 | F59: 0 | G59: 0 | H59: 0 | I59: 0 | J59: 0 | K59: 22.03.2018
A60: Курганинский район | C60: 49
A61: Кущевский район, всего район и поселения | B61: 0 | C61: 45.6 | D61: 0 | E61: 0 | F61: 0 | G61: 0 | H61: 0 | I61: 0 | J61: 0
A62: Кущевский район | C62: 45.6
A63: Лабинский район, всего район и поселения | B63: 0 | C63: 20.1 | D63: 0 | E63: 0 | F63: 0 | G63: 0 | H63: 0 | I63: 0 | J63: 0
A64: Лабинский район | C64: 20.1
A65: Ленинградский район, всего район и поселения | B65: 0 | C65: 94.3 | D65: 0 | E65: 0 | F65: 0 | G65: 0 | H65: 0 | I65: 0 | J65: 0 | K65: 22.03.2018
A66: Ленинградский район | C66: 94.3
A67: Мостовский район, всего район и поселения | B67: 0 | C67: 18 | D67: 0 | E67: 0 | F67: 0 | G67: 0 | H67: 0 | I67: 0 | J67: 0 | K67: 28.03.2018
A68: Мостовский район | C68: 18
A69: Новокубанский район, всего район и поселения | B69: 0 | C69: 174.2 | D69: 0 | E69: 0 | F69: 0 | G69: 0 | H69: 0 | I69: 0 | J69: 0
A70: Новокубанский район | C70: 174.2
A71: Новопокровский район, всего район и поселения | B71: 0 | C71: 13.4 | D71: 0 | E71: 0 | F71: 0 | G71: 0 | H71: 0 | I71: 0 | J71: 0
A72: Новопокровский район | C72: 13.4
A73: Отрадненский район, всего район и поселения | B73: 0 | C73: 10.5 | D73: 0 | E73: 0 | F73: 0 | G73: 0 | H73: 0 | I73: 0 | J73: 0
A74: Отрадненский район | C74: 10.5
A75: Павловский район, всего район и поселения | B75: 0 | C75: 46.2 | D75: 0 | E75: 0 | F75: 0 | G75: 0 | H75: 0 | I75: 0 | J75: 0
A76: Павловский район | C76: 46.2
A77: Приморско-Ахтарский район, всего район и поселения | B77: 0 | C77: 99.1 | D77: 0 | E77: 0 | F77: 0 | G77: 0 | H77: 0 | I77: 0 | J77: 0
A78: Приморско-Ахтарский район | C78: 99.1
A79: Северский район, всего район и поселения | B79: 0 | C79: 89.4 | D79: 0 | E79: 0 | F79: 0 | G79: 0 | H79: 0 | I79: 0 | J79: 0 | K79: 22.03.2018
A80: Северский район | C80: 89.4
A81: Славянский район, всего район и поселения | B81: 0 | C81: 423.4 | D81: 0 | E81: 0 | F81: 0 | G81: 0 | H81: 0 | I81: 0 | J81: 0
A82: Славянский район | C82: 423.4
A83: Староминский район, всего район и поселения | B83: 0 | C83: 124 | D83: 0 | E83: 0 | F83: 0 | G83: 0 | H83: 0 | I83: 0 | J83: 0
A84: Староминский район | C84: 124
A85: Тбилисский район, всего район и поселения | B85: 0 | C85: 14.6 | D85: 0 | E85: 0 | F85: 0 | G85: 0 | H85: 0 | I85: 0 | J85: 0 | K85: 22.03.2018
A86: Тбилисский район | C86: 14.6
A87: Темрюкский район, всего район и поселения | B87: 0 | C87: 235.8 | D87: 0 | E87: 0 | F87: 0 | G87: 0 | H87: 0 | I87: 0 | J87: 0
A88: Темрюкский район | C88: 235.8
A89: Тимашевский район, всего район и поселения | B89: 0 | C89: 221.1 | D89: 0 | E89: 0 | F89: 0 | G89: 0 | H89: 0 | I89: 0 | J89: 0 | K89: 22.03.2018
A90: Тимашевский район | C90: 221.1
A91: Тихорецкий район, всего район и поселения | B91: 0 | C91: 128.4 | D91: 0 | E91: 0 | F91: 0 | G91: 0 | H91: 0 | I91: 0 | J91: 0 | K91: 22.03.2018
A92: Тихорецкий район | C92: 128.4
A93: Туапсинский район, всего район и поселения | B93: 0 | C93: 1134.8 | D93: 0 | E93: 0 | F93: 0 | G93: 0 | H93: 0 | I93: 0 | J93: 0 | K93: 30.03.2018
A94: Туапсинский район | C94: 1134.8
A95: Успенский район, всего район и поселения | B95: 0 | C95: 138.2 | D95: 0 | E95: 0 | F95: 0 | G95: 0 | H95: 0 | I95: 0 | J95: 0
A96: Успенский район | C96: 138.2
A97: Усть-Лабинский район, всего район и поселения | B97: 0 | C97: 170 | D97: 0 | E97: 0 | F97: 0 | G97: 0 | H97: 0 | I97: 0 | J97: 0
A98: Усть-Лабинский район | C98: 170
A99: Щербиновский район, всего район и поселения | B99: 0 | C99: 24.6 | D99: 0 | E99: 0 | F99: 0 | G99: 0 | H99: 0 | I99: 0 | J99: 0
A100: Щербиновский район | C100: 24.6
A102: Руководитель органа исполнительной власти, структурного подразделения администрации Краснодарского края | J102: Р.А. Кривонос
A103: Главный бухгалтер | J103: Н.В. Егорова
A104: Начальник отдела | J104: Д.В. Коломиец
A106: исполнитель: И.И. Белецкая, тел.267-17-81

Sheet Лист для ввода
K1: Ежеквартально, до 20 числа месяца, следующего за отчетным кварталом
K2: на эл. адрес: monitor@krasnodar.ru
A4: ОТЧЕТ
A5: об объемах финансирования местных бюджетов в рамках реализации государственной программы Краснодарского края
A6: "Развитие сельского хозяйства и регулирование рынков сельскохозяйственной продукции, сырья и продовольствия"
A7: (наименование государственной программы)
A8: "Обеспечение эпизоотического, ветеринарно-санитарного благополучия в Краснодарском крае и развитие государственной ветеринарной службы Краснодарского края"
A9: (наименование подпрограммы государственной программы)
A10: Субвенции на осуществление государственных полномочий по предупреждению и ликвидации болезней животных, их лечению, отлову и содержанию безнадзорных животных, защите населения от болезнй, общих для человека и животных в части регулирования численности безнадзорных животных на территории муниципальных образований Краснодарского края
A11: (наименование субсидии (субвенции, иных межбюджетных трансфертов)
A12: за 1 квартал 2018 год
A13: (за I квартал, первое полугодие, 9 месяцев, год)
M14: тыс.рублей
A15: Наименование муници-пального образования (получателя субсидии, субвенции, иных межбюджетных трансфертов) | B15: Объем финансирования на текущий год, предусмотренный бюджетом | E15: Профинансировано в отчетном периоде | H15: Освоено в отчетном периоде | K15: Дата заключения соглашения с муниципальным образованием (дд.мм.гггг)1) | L15: Причины неполного (отсутствия) финансирования2) | M15: Причины неосвоения3)
B16: федеральный бюджет | C16: краевой бюджет | D16: местный бюджет 4) | E16: федеральный бюджет | F16: краевой бюджет | G16: местный бюджет | H16: федеральный бюджет | I16: краевой бюджет | J16: местный бюджет
A17: 1 | B17: 2 | C17: 3 | D17: 4 | E17: 5 | F17: 6 | G17: 7 | H17: 8 | I17: 9 | J17: 10 | K17: 11 | L17: 12 | M17: 13
A18: Всего: | B18: =B19+B20+B21+B22+B23+B24+B25+B26+B27+B37+B51+B57+B70+B80+B92+B109+B121+B134+B145+B155+B166+B178+B190+B198+B211+B223+B237+B252+B266+B282+B293+B303+B319+B332+B343+B357+B374+B381+B391+B405+B417+B432+B444+B456+B473 -> 0 | C18: =C19+C20+C21+C22+C23+C24+C25+C26+C27+C37+C51+C57+C70+C80+C92+C109+C121+C134+C145+C155+C166+C178+C190+C198+C211+C223+C237+C252+C266+C282+C293+C303+C319+C332+C343+C357+C374+C381+C391+C405+C417+C432+C444+C456+C473 -> 13217.3 | D18: =D19+D20+D21+D22+D23+D24+D25+D26+D27+D37+D51+D57+D70+D80+D92+D109+D121+D134+D145+D155+D166+D178+D190+D198+D211+D223+D237+D252+D266+D282+D293+D303+D319+D332+D343+D357+D374+D381+D391+D405+D417+D432+D444+D456+D473 -> 0 | E18: 0 | F18: 0 | G18: 0 | H18: 0 | I18: 0 | J18: 0
A19: нераспределенный резерв
A20: город-курорт Анапа | C20: 836 | K20: 22.03.2018
A21: город Армавир | C21: 243.8
A22: город-курорт Геленджик | C22: 192.2
A23: город Горячий Ключ | C23: 381.8
A24: город Краснодар | C24: 2949.6
A25: город Новороссийск | C25: 172.4
A26: город-курорт Сочи | C26: 3241 | K26: 22.03.2018
A27: Абинский район, всего район и поселения | B27: =SUM(B28:B36) -> 0 | C27: =SUM(C28:C36) -> 7 | D27: =SUM(D28:D36) -> 0 | E27: 0 | F27: 0 | G27: 0 | H27: 0 | I27: 0 | J27: 0 | K27: 30.03.2018
A28: Абинский район | C28: 7
A29: Абинское г/п
A30: Ахтырское г/п
A31: Варнавинское с/п
A32: Мингрельское с/п
A33: Ольгинское с/п
A34: Светлогорское с/п
A35: Федоровское с/п
A36: Холмское с/п
A37: Апшеронский район, всего район и поселения | B37: =SUM(B38:B50) -> 0 | C37: =SUM(C38:C50) -> 49.6 | D37: =SUM(D38:D50) -> 0 | E37: 0 | F37: 0 | G37: 0 | H37: 0 | I37: 0 | J37: 0 | K37: 22.03.2018
A38: Апшеронский район | C38: 49.6
A39: Апшеронское г/п
A40: Кабардинское с/п
A41: Кубанское с/п
A42: Куринское с/п
A43: Мезмайское с/п
A44: Нефтегорское г/п
A45: Нижегородское г/п
A46: Новополянское с/п
A47: Отдаленное с/п
A48: Тверское с/п
A49: Хадыженское г/п
A50: Черниговское с/п
A51: Белоглинский район, всего район и поселения | B51: =SUM(B52:B56) -> 0 | C51: =SUM(C52:C56) -> 17.4 | D51: =SUM(D52:D56) -> 0 | E51: 0 | F51: 0 | G51: 0 | H51: 0 | I51: 0 | J51: 0 | K51: 22.03.2018
A52: Белоглинский район | C52: 17.4
A53: Белоглинское с/п
A54: Новопавловское с/п
A55: Успенское с/п
A56: Центральное с/п
A57: Белореченский район, всего район и поселения | B57: =SUM(B58:B69) -> 0 | C57: =SUM(C58:C69) -> 130.5 | D57: =SUM(D58:D69) -> 0 | E57: 0 | F57: 0 | G57: 0 | H57: 0 | I57: 0 | J57: 0 | K57: 22.03.2018
A58: Белореченский район | C58: 130.5
A59: Белореченское г/п
A60: Бжедуховское с/п
A61: Великовечненское с/п
A62: Дружненское с/п
A63: Первомайское с/п
A64: Пшехское с/п
A65: Родниковское с/п
A66: Рязанское с/п
A67: Школьненское с/п
A68: Черниговское с/п
A69: Южненское с/п
A70: Брюховецкий район, всего район и поселения | B70: =SUM(B71:B79) -> 0 | C70: =SUM(C71:C79) -> 6.7 | D70: =SUM(D71:D79) -> 0 | E70: 0 | F70: 0 | G70: 0 | H70: 0 | I70: 0 | J70: 0 | K70: 22.03.2018
A71: Брюховецкий район | C71: 6.7
A72: Батуринское с/п
A73: Большебейсугское с/п
A74: Брюховецкое с/п
A75: Новоджерелиевское с/п
A76: Новосельское с/п
A77: Переясловское с/п
A78: Свободненское с/п
A79: Чепигинское с/п
A80: Выселковский район, всего район и поселения | B80: =SUM(B81:B91) -> 0 | C80: =SUM(C81:C91) -> 16.1 | D80: =SUM(D81:D91) -> 0 | E80: 0 | F80: 0 | G80: 0 | H80: 0 | I80: 0 | J80: 0 | K80: 22.03.2018
A81: Выселковский район | C81: 16.1
A82: Бейсугское с/п | C82: ,
A83: Бейсужекское с/п
A84: Березанское с/п
A85: Бузиновское с/п
A86: Выселковское с/п
A87: Газырское с/п
A88: Ирклиевское с/п
A89: Крупское с/п
A90: Новобейсугское с/п
A91: Новомалороссийское с/п
A92: Гулькевичский район, всего район и поселения | B92: =SUM(B93:B108) -> 0 | C92: =SUM(C93:C108) -> 168.3 | D92: =SUM(D93:D108) -> 0 | E92: 0 | F92: 0 | G92: 0 | H92: 0 | I92: 0 | J92: 0 | K92: 23.03.2018
A93: Гулькевичский район | C93: 168.3
A94: Гулькевичское г/п
A95: Гирейское г/п
A96: Венцы-Заря с/п
A97: Комсомольское с/п
A98: Красносельское г/п
A99: Кубань с/п
A100: Николенское с/п
A101: Новоукраинское с/п
A102: Отрадно-Кубанское с/п
A103: Отрадно-Ольгинское с/п
A104: Пушкинское с/п
A105: Скобелевское с/п
A106: Соколовское с/п
A107: Союз 4-х хуторов с/п
A108: Тысячное с/п
A109: Динской район, всего район и поселения | B109: =SUM(B110:B120) -> 0 | C109: =SUM(C110:C120) -> 337.6 | D109: =SUM(D110:D120) -> 0 | E109: 0 | F109: 0 | G109: 0 | H109: 0 | I109: 0 | J109: 0
A110: Динской район | C110: 337.6
A111: Васюринское с/п
A112: Динское с/п
A113: Красносельское с/п
A114: Мичуринское с/п
A115: Нововеличковское с/п
A116: Новотитаровское с/п
A117: Первореченское с/п
A118: Пластуновское с/п
A119: Старомышастовское с/п
A120: Южно-Кубанское с/п
A121: Ейский район, всего район и поселения | B121: =SUM(B122:B133) -> 0 | C121: =SUM(C122:C133) -> 295.5 | D121: =SUM(D122:D133) -> 0 | E121: 0 | F121: 0 | G121: 0 | H121: 0 | I121: 0 | J121: 0 | K121: 30.03.2018
A122: Ейский район | C122: 295.5
A123: Александровское с/п
A124: Должанское с/п
A125: Ейское г/п
A126: Ейское с/п
A127: Камышеватское с/п
A128: Копанское с/п
A129: Красноармейское с/п
A130: Кухаривское с/п
A131: Моревское с/п
A132: Трудовое с/п
A133: Ясенское с/п
A134: Кавказский район, всего район и поселения | B134: =SUM(B135:B144) -> 0 | C134: =SUM(C135:C144) -> 264.8 | D134: =SUM(D135:D144) -> 0 | E134: 0 | F134: 0 | G134: 0 | H134: 0 | I134: 0 | J134: 0
A135: Кавказский район | C135: 264.8
A136: Дмитриевское с/п
A137: им. М. Горького с/п
A138: Кавказское с/п
A139: Казанское с/п
A140: Кропоткинское г/п
A141: Лосевское с/п
A142: Мирское с/п
A143: Привольное с/п
A144: Темижбекское с/п
A145: Калининский район, всего район и поселения | B145: =SUM(B146:B154) -> 0 | C145: =SUM(C146:C154) -> 7.1 | D145: =SUM(D146:D154) -> 0 | E145: 0 | F145: 0 | G145: 0 | H145: 0 | I145: 0 | J145: 0
A146: Калининский район | C146: 7.1
A147: Бойкопонурское с/п
A148: Гривенское с/п
A149: Гришковское с/п
A150: Джумайловское с/п
A151: Калининское с/п
A152: Куйбышевское с/п
A153: Новониколаевское с/п
A154: Старовеличковское с/п
A155: Каневской район, всего район и поселения | B155: =SUM(B156:B165) -> 0 | C155: =SUM(C156:C165) -> 42.4 | D155: =SUM(D156:D165) -> 0 | E155: 0 | F155: 0 | G155: 0 | H155: 0 | I155: 0 | J155: 0 | K155: 22.03.2018
A156: Каневской район | C156: 42.4
A157: Каневское с/п
A158: Красногвардейское с/п
A159: Кубанскостепное с/п
A160: Новодерявянковское с/п
A161: Новоминское с/п
A162: Привольненское с/п
A163: Придорожное с/п
A164: Стародеревянковское с/п
A165: Челбасское с/п
A166: Кореновский район, всего район и поселения | B166: =SUM(B167:B177) -> 0 | C166: =SUM(C167:C177) -> 337.6 | D166: =SUM(D167:D177) -> 0 | E166: 0 | F166: 0 | G166: 0 | H166: 0 | I166: 0 | J166: 0
A167: Кореновский район | C167: 337.6
A168: Братковское с/п
A169: Бураковское с/п
A170: Дядьковское с/п
A171: Журавское с/п
A172: Кореновское г/п
A173: Новоберезанское с/п
A174: Платнировское с/п
A175: Пролетарское с/п
A176: Раздольненское с/п
A177: Сергиевское с/п
A178: Красноармейский район, всего район и поселения | B178: =SUM(B179:B189) -> 0 | C178: =SUM(C179:C189) -> 105.7 | D178: =SUM(D179:D189) -> 0 | E178: 0 | F178: 0 | G178: 0 | H178: 0 | I178: 0 | J178: 0 | K178: 30.03.2018
A179: Красноармейский район | C179: 105.7
A180: Ивановское с/п
A181: Марьянское с/п
A182: Новомышастовское с/п
A183: Октябрьское с/п
A184: Полтавское с/п
A185: Протичкинское с/п
A186: Староджерелиевское с/п
A187: Старонижнестеблиевское с/п
A188: Трудобеликовское с/п
A189: Чебургольское с/п
A190: Крыловский район, всего район и поселения | B190: =SUM(B191:B197) -> 0 | C190: =SUM(C191:C197) -> 64.5 | D190: =SUM(D191:D197) -> 0 | E190: 0 | F190: 0 | G190: 0 | H190: 0 | I190: 0 | J190: 0
A191: Крыловский район | C191: 64.5
A192: Крыловское с/п
A193: Кугоейское с/п
A194: Новопашковское с/п
A195: Новосергиевское с/п
A196: Октябрьское с/п
A197: Шевченковское с/п
A198: Крымский район, всего район и поселения | B198: =SUM(B199:B210) -> 0 | C198: =SUM(C199:C210) -> 75 | D198: =SUM(D199:D210) -> 0 | E198: 0 | F198: 0 | G198: 0 | H198: 0 | I198: 0 | J198: 0
A199: Крымский район | C199: 75
A200: Адагумское с/п
A201: Варениковское с/п
... 291 more rows
